bitfinex-derivatives/quotes_BTCF0:USTF0_20241009
["timestamp","ask_amount","ask_price","bid_price","bid_amount"]
[1728446469791,0.446988,62381.0,62380.0,0.11018798]
[1728446472889,0.3668,62381.0,62380.0,0.24183255]
[1728446473085,0.006,62381.0,62380.0,0.32202155]
[1728446475301,0.0037,62385.0,62380.0,0.32202155]
[1728446475492,0.080182,62386.0,62384.0,0.09585779]
[1728446475791,0.080182,62386.0,62385.0,0.11018798]
[1728446476586,0.007,62386.0,62385.0,0.11018798]
[1728446476789,0.007,62386.0,62385.0,0.20604577]
[1728446477193,0.008,62386.0,62385.0,0.20604577]
[1728446477791,0.008,62386.0,62385.0,0.11018798]
[1728446478007,0.008,62386.0,62385.0,0.20604577]
[1728446478192,0.008,62386.0,62385.0,0.11018798]
[1728446478497,0.008,62386.0,62385.0,0.11025594]
[1728446478798,0.016,62386.0,62385.0,0.11125594]
[1728446479200,0.016,62386.0,62385.0,0.20711373]
[1728446479401,0.016,62386.0,62385.0,0.23112495]
[1728446479697,0.016,62386.0,62385.0,0.13526716]
[1728446485293,0.016,62386.0,62385.0,0.16796716]
[1728446485591,0.08803115,62386.0,62385.0,0.05771122]
[1728446488402,0.08801262,62386.0,62385.0,0.05771122]
[1728446492393,0.016,62386.0,62385.0,0.05771122]
[1728446493191,0.216182,62386.0,62385.0,0.05771122]
[1728446494702,0.216182,62386.0,62385.0,0.001]
[1728446500506,0.576982,62386.0,62385.0,0.001]
[1728446504407,0.576982,62386.0,62385.0,0.06491413]
[1728446505009,0.576982,62386.0,62385.0,0.001]
[1728446506417,0.576982,62386.0,62385.0,0.06490469]
[1728446506810,0.576982,62386.0,62385.0,0.001]
[1728446507004,0.576982,62386.0,62385.0,0.0648881]
[1728446507514,0.64935182,62386.0,62385.0,0.001]
[1728446507710,0.68245117,62386.0,62385.0,0.001]
[1728446507916,0.64935182,62386.0,62385.0,0.001]
[1728446508513,0.28855182,62386.0,62385.0,0.001]
[1728446508713,0.64935182,62386.0,62385.0,0.001]
[1728446509613,0.61008135,62386.0,62385.0,0.001]
[1728446513614,0.67008135,62386.0,62385.0,0.001]
[1728446513813,0.70935198,62386.0,62385.0,0.001]
[1728446514211,0.75858037,62386.0,62385.0,0.001]
[1728446514416,1.98362682,62386.0,62385.0,0.001]
[1728446514814,1.93439843,62386.0,62385.0,0.001]
[1728446515013,1.79023198,62386.0,62385.0,0.001]
[1728446515613,1.717862,62386.0,62385.0,0.001]
[1728446516608,2.078662,62386.0,62385.0,0.001]
[1728446517621,1.99848,62386.0,62376.0,0.0037]
[1728446517819,0.080195,62376.0,62375.0,0.0246657]
[1728446518123,0.080197,62374.0,62373.0,0.04791449]
[1728446518317,0.200197,62374.0,62373.0,0.04791449]
[1728446519325,0.200197,62374.0,62372.0,0.04791449]
[1728446519517,0.12,62373.0,62372.0,0.04791449]
[1728446519711,0.12,62373.0,62370.0,0.0947881]
[1728446520414,0.12,62373.0,62372.0,0.005]
[1728446520614,0.12,62373.0,62372.0,0.011]
[1728446521122,0.12,62373.0,62372.0,0.006]
[1728446521420,0.121,62373.0,62372.0,0.006]
[1728446522423,0.122,62373.0,62370.0,0.0439]
[1728446523016,0.122,62373.0,62372.0,0.006]
[1728446523228,0.121,62373.0,62372.0,0.011]
[1728446523521,0.12,62373.0,62372.0,0.005]
[1728446523718,0.121,62373.0,62372.0,0.005]
[1728446523912,0.122,62373.0,62370.0,0.0439]
[1728446524220,0.122,62373.0,62372.0,0.006]
[1728446525823,0.122,62373.0,62372.0,0.011]
[1728446525824,0.121,62373.0,62372.0,0.011]
[1728446533328,0.121,62373.0,62372.0,0.090843]
[1728446536326,0.121,62373.0,62372.0,0.20105867]
[1728446537834,0.121,62373.0,62372.0,0.011]
[1728446540840,0.121,62373.0,62372.0,0.131]
[1728446540841,0.001,62373.0,62372.0,0.131]
[1728446542436,0.001,62373.0,62372.0,0.011]
[1728446544532,0.07281904,62373.0,62372.0,0.011]
[1728446544739,0.1535379,62373.0,62372.0,0.011]
[1728446545038,0.0335379,62373.0,62372.0,0.011]
[1728446545243,0.0335379,62373.0,62372.0,0.131]
[1728446545244,0.001,62373.0,62372.0,0.131]
[1728446545438,0.03349289,62373.0,62372.0,0.131]
[1728446545638,0.0112,62377.0,62373.0,0.080198]
[1728446545834,0.0112,62380.0,62376.0,0.21584944]
[1728446546030,0.443267,62382.0,62377.0,0.14335928]
[1728446546234,0.560987,62382.0,62380.0,0.07987373]
[1728446547039,0.560987,62382.0,62379.0,0.07987373]
[1728446547235,0.560987,62382.0,62380.0,0.19007948]
[1728446547441,0.4808,62382.0,62380.0,0.07987373]
[1728446548439,0.4868,62382.0,62380.0,0.07987373]
[1728446548644,0.4868,62382.0,62377.0,0.11397373]
[1728446548945,0.200192,62378.0,62377.0,0.0341]
[1728446549250,0.200192,62378.0,62377.0,0.0331]
[1728446549436,0.080194,62377.0,62375.0,0.07986026]
[1728446549637,0.3608,62376.0,62375.0,0.07986026]
[1728446551559,0.3648,62376.0,62375.0,0.07986026]
[1728446551846,0.3648,62376.0,62374.0,0.07986026]
[1728446552036,0.12,62375.0,62374.0,0.07986026]
[1728446552240,0.12,62375.0,62374.0,0.19028984]
[1728446552645,0.2410624,62375.0,62372.0,0.02412284]
[1728446552844,0.1210624,62374.0,62367.0,0.0328]
[1728446553146,0.53134495,62376.0,62367.0,0.0328]
[1728446553147,0.12,62370.0,62367.0,0.0328]
[1728446553343,0.0718308,62369.0,62367.0,0.0328]
[1728446553648,0.0718308,62368.0,62367.0,0.05744245]
[1728446554052,0.0718308,62368.0,62367.0,0.06244245]
[1728446554545,0.0718308,62368.0,62367.0,0.05744245]
[1728446554753,0.0718308,62368.0,62367.0,0.06244245]
[1728446555752,0.0718308,62368.0,62367.0,0.06644245]
[1728446556246,0.0728308,62368.0,62367.0,0.06644245]
[1728446557144,0.0728308,62368.0,62367.0,0.18644245]
[1728446559744,0.04027743,62368.0,62367.0,0.18644245]
[1728446559950,0.07278504,62368.0,62367.0,0.18644245]
[1728446560648,0.03350708,62368.0,62367.0,0.39276436]
[1728446560851,0.001,62368.0,62367.0,0.39276436]
[1728446561051,0.001,62368.0,62367.0,0.32911492]
[1728446561249,0.121,62368.0,62367.0,0.17691492]
[1728446561444,0.121,62368.0,62367.0,0.23217247]
[1728446561644,0.121,62368.0,62367.0,0.23216536]
[1728446561950,0.121,62368.0,62367.0,0.009]
[1728446562747,0.12,62368.0,62364.0,0.10436988]
[1728446563056,0.200209,62365.0,62364.0,0.02447699]
[1728446563251,0.200209,62365.0,62363.0,0.07989289]
[1728446563452,0.200209,62365.0,62361.0,0.07989289]
[1728446563750,0.080209,62365.0,62363.0,0.07989289]
[1728446563949,0.200209,62365.0,62363.0,0.07989289]
[1728446565154,0.201209,62365.0,62363.0,0.07989289]
[1728446565357,0.201209,62365.0,62362.0,0.07989289]
[1728446565950,0.200209,62365.0,62362.0,0.07989289]
[1728446566257,0.08021,62364.0,62362.0,0.07989289]
[1728446566850,0.08021,62364.0,62361.0,0.07989289]
[1728446567743,0.080212,62363.0,62362.0,0.06383198]
[1728446568751,0.080212,62363.0,62362.0,0.18383198]
[1728446569254,0.081212,62363.0,62362.0,0.18383198]
[1728446570656,0.083212,62363.0,62362.0,0.18383198]
[1728446575752,0.083212,62363.0,62362.0,0.12]
[1728446576467,0.003,62363.0,62362.0,0.12]
[1728446577858,0.001,62363.0,62362.0,0.12]
[1728446578052,0.001,62363.0,62362.0,0.123]
[1728446578756,0.3608,62366.0,62362.0,0.123]
[1728446578962,0.3608,62366.0,62362.0,0.127]
[1728446579157,0.441008,62366.0,62362.0,0.127]
[1728446579362,0.441008,62366.0,62362.0,0.123]
[1728446579557,0.441008,62366.0,62362.0,0.126]
[1728446579865,0.441008,62366.0,62362.0,0.125]
[1728446582659,0.441008,62366.0,62362.0,0.122]
[1728446582864,0.441008,62366.0,62362.0,0.20289289]
[1728446583066,0.441008,62366.0,62362.0,0.20489289]
[1728446583267,0.441008,62366.0,62362.0,0.20289289]
[1728446583663,0.441008,62366.0,62362.0,0.20089289]
[1728446583863,0.442008,62366.0,62362.0,0.20089289]
[1728446584061,0.442008,62366.0,62363.0,0.07989289]
[1728446586264,0.443008,62366.0,62363.0,0.07989289]
[1728446586666,0.444008,62366.0,62363.0,0.07989289]
[1728446586865,0.083208,62366.0,62363.0,0.07989289]
[1728446587065,0.083208,62366.0,62362.0,0.12]
[1728446587066,0.083208,62366.0,62364.0,0.19043728]
[1728446587368,0.083208,62366.0,62364.0,0.07989289]
[1728446588267,0.084208,62366.0,62364.0,0.07989289]
[1728446588572,0.084208,62366.0,62365.0,0.19046259]
[1728446588770,0.083208,62366.0,62365.0,0.19046259]
[1728446588963,0.085208,62366.0,62365.0,0.07989289]
[1728446589164,0.085208,62366.0,62365.0,0.19049216]
[1728446589469,0.005,62366.0,62365.0,0.07989289]
[1728446589658,0.002,62366.0,62365.0,0.07989289]
[1728446589970,0.008,62366.0,62364.0,0.07989289]
[1728446590168,0.008,62366.0,62365.0,0.07989289]
[1728446590369,0.008,62366.0,62365.0,0.19056803]
[1728446590575,0.008,62366.0,62365.0,0.11067514]
[1728446590757,0.04031479,62366.0,62361.0,0.080214]
[1728446590963,0.084207,62366.0,62361.0,0.080214]
[1728446591163,0.087207,62366.0,62361.0,0.080214]
[1728446591363,0.03229339,62365.0,62361.0,0.080214]
[1728446591573,0.087207,62366.0,62361.0,0.080214]
[1728446591763,0.03230095,62365.0,62361.0,0.080214]
[1728446592073,0.085207,62366.0,62361.0,0.080214]
[1728446592375,0.083207,62366.0,62361.0,0.080214]
[1728446592673,0.083207,62366.0,62361.0,0.081214]
[1728446592863,0.080207,62366.0,62361.0,0.081214]
[1728446593562,0.080207,62366.0,62361.0,0.080214]
[1728446593762,0.080207,62366.0,62361.0,0.081214]
[1728446597968,0.080207,62366.0,62362.0,0.20655438]
[1728446598169,0.080207,62366.0,62363.0,0.11068655]
[1728446598365,0.080207,62366.0,62364.0,0.11068655]
[1728446598569,0.080207,62366.0,62365.0,0.11068655]
[1728446598981,0.081207,62366.0,62365.0,0.11068655]
[1728446599279,0.082207,62366.0,62365.0,0.11068655]
[1728446599767,0.080207,62366.0,62365.0,0.11068655]
[1728446599963,0.088207,62366.0,62365.0,0.11068655]
[1728446603276,0.008,62366.0,62365.0,0.19089555]
[1728446603779,0.008,62366.0,62365.0,0.28676338]
[1728446604181,0.008,62366.0,62365.0,0.19089555]
[1728446605873,0.008,62366.0,62365.0,0.080209]
[1728446607487,0.0112,62370.0,62369.0,0.080204]
[1728446607692,0.0112,62374.0,62373.0,0.080198]
[1728446607984,0.48320561,62379.0,62374.0,0.12]
[1728446608376,0.56339661,62379.0,62374.0,0.12]
[1728446608577,0.03927557,62378.0,62374.0,0.12]
[1728446608780,0.56571661,62379.0,62374.0,0.12]
[1728446609083,0.11946865,62378.0,62374.0,0.12]
[1728446609285,0.080193,62378.0,62374.0,0.12]
[1728446609583,0.080193,62378.0,62374.0,0.122]
[1728446610180,0.080193,62378.0,62374.0,0.125]
[1728446610375,0.080193,62378.0,62374.0,0.205197]
[1728446610580,0.36548561,62379.0,62377.0,0.12]
[1728446610779,0.36320561,62379.0,62377.0,0.200193]
[1728446612181,0.36320561,62379.0,62377.0,0.203193]
[1728446612582,0.36320561,62379.0,62377.0,0.206193]
[1728446613389,0.00240561,62379.0,62377.0,0.687113]
[1728446613983,0.00240561,62379.0,62377.0,0.206193]
[1728446614179,0.00240561,62379.0,62377.0,0.126]
[1728446614381,0.00240561,62379.0,62378.0,0.080192]
[1728446614678,0.00240561,62379.0,62378.0,0.12814193]
[1728446614885,0.01040561,62379.0,62378.0,0.561112]
[1728446615086,0.01040561,62379.0,62378.0,0.60889791]
[1728446615290,0.01040561,62379.0,62378.0,0.561112]
[1728446615788,0.01040561,62379.0,62378.0,0.562112]
[1728446615789,0.01940561,62379.0,62378.0,0.562112]
[1728446615983,0.017,62379.0,62378.0,0.562112]
[1728446616286,0.018,62379.0,62378.0,0.563112]
[1728446618290,0.011,62379.0,62378.0,0.60984146]
[1728446618489,0.002,62379.0,62378.0,0.60884146]
[1728446618792,0.003,62379.0,62378.0,0.60884146]
[1728446619090,0.003,62379.0,62378.0,0.200192]
[1728446622087,0.0112,62384.0,62383.0,0.080186]
[1728446622286,0.0112,62387.0,62386.0,0.080182]
[1728446622591,0.0112,62393.0,62389.0,0.080178]
[1728446622891,0.080169,62396.0,62391.0,0.3608]
[1728446625388,0.080169,62396.0,62391.0,0.3618]
[1728446626196,0.3608,62396.0,62393.0,0.12]
[1728446626689,0.3608,62396.0,62393.0,0.200172]
[1728446626896,0.00240443,62397.0,62393.0,0.12]
[1728446627098,0.00240443,62397.0,62396.0,0.200169]
[1728446627986,0.03606878,62397.0,62396.0,0.233069]
[1728446628387,0.00240443,62397.0,62396.0,0.233069]
[1728446628583,0.03706666,62397.0,62396.0,0.240069]
[1728446628795,0.00340443,62397.0,62396.0,0.240069]
[1728446629991,0.00340443,62397.0,62396.0,0.247069]
[1728446630792,0.00340443,62397.0,62396.0,0.246069]
[1728446631192,0.00340443,62397.0,62396.0,0.27099109]
[1728446640414,0.00340443,62397.0,62396.0,0.23809109]
[1728446642100,0.00340443,62397.0,62396.0,0.03792209]
[1728446642496,0.03380443,62397.0,62396.0,0.03792209]
[1728446643001,0.51651932,62397.0,62392.0,0.0378702]
[1728446643212,0.14387209,62395.0,62392.0,0.0378702]
[1728446643405,0.14387209,62393.0,62392.0,0.06245242]
[1728446643600,0.14387209,62393.0,62392.0,0.02458222]
[1728446643808,0.080173,62393.0,62388.0,0.3608]
[1728446644000,0.1439228,62391.0,62388.0,0.3608]
[1728446644202,0.26583894,62390.0,62388.0,0.3608]
[1728446644405,0.07270132,62389.0,62388.0,0.3608]
[1728446644709,0.07270132,62389.0,62381.0,0.0037]
[1728446644710,0.60271635,62389.0,62385.0,0.02395511]
[1728446644904,0.26396873,62386.0,62378.0,0.0037]
[1728446645098,0.26588508,62385.0,62382.0,0.12]
[1728446645305,0.07270132,62384.0,62377.0,0.38561004]
[1728446645605,0.19178495,62388.0,62382.0,0.080187]
[1728446645606,0.07270132,62383.0,62382.0,0.080187]
[1728446645807,0.07270132,62383.0,62382.0,0.200187]
[1728446647499,0.07270132,62383.0,62382.0,0.202187]
[1728446648203,0.07270132,62383.0,62382.0,0.205187]
[1728446650013,0.0316,62388.0,62382.0,0.23523319]
[1728446650206,0.0316,62388.0,62386.0,0.12]
[1728446651512,0.0326,62388.0,62386.0,0.12]
[1728446653017,0.0336,62388.0,62386.0,0.12]
[1728446656021,0.0316,62388.0,62386.0,0.122]
[1728446656722,0.0326,62388.0,62386.0,0.12]
[1728446656911,0.0336,62388.0,62386.0,0.12]
[1728446657717,0.0336,62388.0,62386.0,0.14486897]
[1728446658113,0.0336,62388.0,62387.0,0.04782663]
[1728446659207,0.0326,62388.0,62387.0,0.04782663]
[1728446659410,0.0346,62388.0,62387.0,0.04782663]
[1728446659607,0.0356,62388.0,62387.0,0.04782663]
[1728446659819,0.004,62388.0,62387.0,0.04782663]
[1728446660218,0.004,62388.0,62386.0,0.14486897]
[1728446661222,0.004,62388.0,62386.0,0.1926956]
[1728446661427,0.003,62388.0,62386.0,0.1926956]
[1728446661632,0.003,62388.0,62386.0,0.14486897]
[1728446661838,0.003,62388.0,62386.0,0.1926956]
[1728446662124,0.002,62388.0,62386.0,0.1926956]
[1728446662517,0.002,62388.0,62386.0,0.2728766]
[1728446665136,0.03244936,62387.0,62386.0,0.22504997]
[1728446666430,0.03344936,62387.0,62386.0,0.22504997]
[1728446666631,0.03444936,62387.0,62386.0,0.22504997]
[1728446669739,0.03444936,62387.0,62386.0,0.10504997]
[1728446671434,0.07371658,62387.0,62386.0,0.22504997]
[1728446671634,0.03444936,62387.0,62386.0,0.22504997]
[1728446671939,0.03444936,62387.0,62386.0,0.10504997]
[1728446673147,0.002,62387.0,62386.0,0.46584997]
[1728446673335,0.002,62387.0,62386.0,0.63947712]
[1728446675047,0.002,62387.0,62386.0,0.60923338]
[1728446675547,0.002,62387.0,62386.0,0.60924231]
[1728446676138,0.002,62387.0,62386.0,0.57764231]
[1728446676341,0.002,62387.0,62386.0,0.13684997]
[1728446680446,0.05121777,62387.0,62386.0,0.13684997]
[1728446680749,0.002,62387.0,62386.0,0.13684997]
[1728446681142,0.12330851,62387.0,62386.0,0.13684997]
[1728446681545,0.26727724,62387.0,62386.0,0.13684997]
[1728446681946,0.12330851,62387.0,62386.0,0.13684997]
[1728446682448,0.26727724,62387.0,62386.0,0.13684997]
[1728446684854,0.07409074,62387.0,62386.0,0.13684997]
[1728446685349,0.12330842,62387.0,62386.0,0.13684997]
[1728446686444,0.14634814,62387.0,62386.0,0.13684997]
[1728446686852,0.12330842,62387.0,62386.0,0.13684997]
[1728446687049,0.12332192,62387.0,62386.0,0.13684997]
[1728446688242,0.002,62387.0,62386.0,0.21684231]
[1728446689848,0.002,62387.0,62386.0,0.327252]
[1728446690251,0.002,62387.0,62386.0,0.21684231]
[1728446690763,0.002,62387.0,62386.0,0.13684997]
[1728446692046,0.122,62387.0,62382.0,0.07999234]
[1728446692247,0.122,62387.0,62380.0,0.080189]
[1728446692248,0.12,62383.0,62380.0,0.080189]
[1728446692443,0.12,62383.0,62382.0,0.06403463]
[1728446693457,0.3608,62385.0,62382.0,0.06403463]
[1728446693656,0.3608,62385.0,62382.0,0.06703463]
[1728446694058,0.3608,62385.0,62382.0,0.06403463]
[1728446694260,0.3608,62385.0,62382.0,0.06703463]
[1728446694758,0.3608,62385.0,62383.0,0.06403463]
[1728446695250,0.26561585,62384.0,62382.0,0.006]
[1728446695462,0.12126873,62383.0,62382.0,0.006]
[1728446695647,0.07204671,62383.0,62382.0,0.006]
[1728446696550,0.07204671,62383.0,62382.0,0.003]
[1728446696750,0.14434712,62384.0,62383.0,0.002]
[1728446696951,0.12133559,62384.0,62383.0,0.002]
[1728446697157,0.12133569,62384.0,62382.0,0.003]
[1728446697359,0.080179,62388.0,62382.0,0.003]
[1728446697360,0.07211462,62383.0,62382.0,0.003]
[1728446697752,0.07211462,62383.0,62381.0,0.080188]
[1728446697955,0.07211462,62382.0,62381.0,0.080188]
[1728446698154,0.12133474,62386.0,62381.0,0.080188]
[1728446698658,0.26568186,62386.0,62381.0,0.080188]
[1728446698861,0.12133474,62385.0,62381.0,0.084188]
[1728446699360,0.26568186,62385.0,62381.0,0.084188]
[1728446699552,0.07211462,62384.0,62381.0,0.084188]
[1728446699751,0.07211462,62383.0,62382.0,0.003]
[1728446700157,0.07211462,62383.0,62381.0,0.084188]
[1728446700362,0.07211462,62382.0,62381.0,0.084188]
[1728446700559,0.07211462,62382.0,62381.0,0.088188]
[1728446700753,0.07211462,62382.0,62381.0,0.084188]
[1728446700947,0.07211462,62385.0,62381.0,0.084188]
[1728446701159,0.07211462,62384.0,62382.0,0.080187]
[1728446701363,0.07212263,62383.0,62382.0,0.080187]
[1728446702359,0.03285408,62383.0,62382.0,0.080187]
[1728446702556,0.03285408,62383.0,62382.0,0.810187]
[1728446702857,0.15544225,62390.0,62389.0,0.080178]
[1728446703159,0.15544225,62390.0,62389.0,0.200178]
[1728446703160,0.14424225,62390.0,62389.0,0.200178]
[1728446703365,0.16038569,62393.0,62389.0,0.12]
[1728446703562,0.20034823,62395.0,62392.0,0.12]
[1728446703766,0.18914823,62395.0,62394.0,0.04798325]
[1728446705061,0.00240443,62397.0,62395.0,0.08017]
[1728446705361,0.00240443,62397.0,62396.0,0.4808]
[1728446705773,0.3608,62397.0,62395.0,0.07999234]
[1728446706066,0.12,62396.0,62395.0,0.12795294]
[1728446706858,0.12,62396.0,62394.0,0.04896932]
[1728446707061,0.12,62396.0,62395.0,0.001]
[1728446707457,0.13,62396.0,62395.0,0.001]
[1728446707664,0.141,62396.0,62395.0,0.002]
[1728446718271,0.21123942,62396.0,62395.0,0.002]
[1728446718873,0.57203942,62396.0,62395.0,0.002]
[1728446722683,0.57203983,62396.0,62395.0,0.002]
[1728446725373,0.5018,62396.0,62395.0,0.002]
[1728446727179,0.021,62396.0,62395.0,0.16996932]
[1728446727484,0.021,62396.0,62395.0,0.18593994]
[1728446727679,0.021,62396.0,62395.0,0.122]
[1728446728488,0.021,62396.0,62395.0,0.23499703]
[1728446728687,0.0112,62402.0,62395.0,0.31493127]
[1728446728884,0.0112,62402.0,62401.0,0.18394766]
[1728446729091,0.080158,62405.0,62401.0,0.18394766]
[1728446729283,0.080158,62405.0,62403.0,0.04795504]
[1728446730087,0.080158,62405.0,62404.0,0.12]
[1728446730283,0.080158,62405.0,62404.0,0.16794004]
[1728446730481,0.0112,62410.0,62405.0,0.080157]
[1728446730680,0.0112,62410.0,62407.0,0.12]
[1728446730887,0.08015,62411.0,62407.0,0.12]
[1728446731690,0.3638,62408.0,62407.0,0.12]
[1728446733183,0.3608,62408.0,62407.0,0.12]
[1728446733490,0.48222807,62408.0,62407.0,0.12]
[1728446734682,0.28139759,62408.0,62407.0,0.12]
[1728446734878,0.12142807,62408.0,62407.0,0.12]
[1728446735989,0.07222254,62408.0,62407.0,0.12]
[1728446736591,0.07022254,62408.0,62407.0,0.12]
[1728446736985,0.00240499,62412.0,62408.0,0.080153]
[1728446737190,0.070212,62411.0,62408.0,0.080153]
[1728446737383,0.070212,62410.0,62408.0,0.080153]
[1728446737585,0.070212,62409.0,62408.0,0.080153]
[1728446737788,0.020312,62409.0,62408.0,0.080153]
[1728446737991,0.00240499,62412.0,62411.0,0.08015]
[1728446738193,0.00240499,62412.0,62411.0,0.56095]
[1728446739383,0.00340499,62412.0,62411.0,0.56195]
[1728446740094,0.00940499,62412.0,62411.0,0.56295]
[1728446741089,0.00940499,62412.0,62411.0,1.64363]
[1728446741288,0.0112,62417.0,62416.0,0.200143]
[1728446741596,0.0043,62424.0,62416.0,0.200143]
[1728446741597,0.0112,62422.0,62416.0,0.200143]
[1728446741788,0.0112,62425.0,62420.0,0.12]
[1728446742587,0.440935,62423.0,62420.0,0.12]
[1728446742885,0.080136,62422.0,62420.0,0.12]
[1728446744389,0.080136,62422.0,62420.0,0.121]
[1728446745399,0.080136,62422.0,62420.0,0.1503243]
[1728446751015,0.3608,62423.0,62420.0,0.1503243]
[1728446751220,0.0112,62425.0,62422.0,0.12]
[1728446751420,0.083829,62427.0,62422.0,0.12]
[1728446751421,0.080129,62427.0,62422.0,0.12]
[1728446751717,0.0112,62428.0,62426.0,0.12]
[1728446751920,0.0307,62429.0,62426.0,0.12]
[1728446752118,0.110827,62429.0,62426.0,0.12]
[1728446753719,0.080128,62428.0,62426.0,0.122]
[1728446754813,0.080128,62428.0,62426.0,0.121]
[1728446755020,0.080128,62428.0,62426.0,0.122]
[1728446755824,0.17686521,62427.0,62420.0,0.02923449]
[1728446756007,0.17686521,62426.0,62425.0,0.12]
[1728446756214,0.07019906,62426.0,62425.0,0.12]
[1728446757014,0.07019906,62426.0,62425.0,0.200131]
[1728446757220,0.07019906,62426.0,62425.0,0.201131]
[1728446757812,0.07019906,62426.0,62425.0,0.202131]
[1728446761625,0.07020015,62426.0,62425.0,0.202131]
[1728446761825,0.11939,62426.0,62425.0,0.202131]
[1728446762025,0.17686706,62426.0,62425.0,0.23161733]
[1728446762828,0.20013,62426.0,62425.0,0.03148633]
[1728446764530,0.23108691,62426.0,62425.0,0.03148633]
[1728446764824,0.20013,62426.0,62425.0,0.03148633]
[1728446765627,0.23108691,62426.0,62425.0,0.03148633]
[1728446766618,0.23108788,62426.0,62425.0,0.03148633]
[1728446768222,0.11108788,62426.0,62425.0,0.03148633]
[1728446770928,0.15033277,62426.0,62425.0,0.02064837]
[1728446771133,0.25700264,62426.0,62422.0,0.200135]
[1728446771322,0.17687264,62425.0,62422.0,0.200135]
[1728446771517,0.17687186,62424.0,62422.0,0.200135]
[1728446771725,0.17687186,62423.0,62422.0,0.200135]
[1728446772033,0.11939279,62423.0,62422.0,0.200135]
[1728446772235,0.07020179,62423.0,62422.0,0.200135]
[1728446772426,0.11939279,62423.0,62422.0,0.200135]
[1728446772626,0.17687186,62423.0,62422.0,0.22845437]
[1728446773127,0.07020179,62423.0,62422.0,0.22845437]
[1728446774034,0.12239279,62423.0,62422.0,0.22845437]
[1728446776533,0.12239233,62423.0,62422.0,0.22845437]
[1728446778032,0.03395663,62423.0,62422.0,0.22845437]
[1728446779333,0.03395663,62423.0,62422.0,0.10845437]
[1728446785941,0.07320206,62423.0,62422.0,0.03023095]
[1728446786138,0.003,62423.0,62422.0,0.02831937]
[1728446786337,0.03395705,62423.0,62419.0,0.12]
[1728446786540,0.03095705,62422.0,62419.0,0.12]
[1728446786839,0.04224543,62423.0,62421.0,0.080137]
[1728446787039,0.17687382,62422.0,62421.0,0.080137]
[1728446787541,0.11939396,62422.0,62421.0,0.080137]
[1728446789431,0.12239396,62422.0,62421.0,0.080137]
[1728446791235,0.07320286,62422.0,62421.0,0.080137]
[1728446791434,0.1223946,62422.0,62421.0,0.080137]
[1728446792943,0.03395722,62422.0,62421.0,0.080137]
[1728446796242,0.03395711,62422.0,62421.0,0.080137]
[1728446805949,0.03395773,62422.0,62421.0,0.080137]
[1728446808046,0.12239629,62422.0,62419.0,0.02815257]
[1728446808248,0.17687722,62421.0,62419.0,0.080139]
[1728446808445,0.17687722,62420.0,62419.0,0.080139]
[1728446808947,0.11939629,62420.0,62419.0,0.080139]
[1728446809352,0.11939629,62420.0,62419.0,0.200139]
[1728446809555,0.12039629,62420.0,62419.0,0.200139]
[1728446810849,0.12139629,62420.0,62419.0,0.200139]
[1728446813549,0.12139634,62420.0,62419.0,0.200139]
[1728446813752,0.07220388,62420.0,62419.0,0.200139]
[1728446814050,0.12139634,62420.0,62419.0,0.200139]
[1728446815653,0.03295767,62420.0,62419.0,0.200139]
[1728446815847,0.07220386,62420.0,62419.0,0.200139]
[1728446816046,0.002,62420.0,62419.0,0.200139]
[1728446818944,0.0112,62426.0,62419.0,0.18363944]
[1728446819149,0.0112,62426.0,62423.0,0.200134]
[1728446819360,0.080129,62428.0,62423.0,0.24815823]
[1728446819653,0.080129,62428.0,62427.0,0.12]
[1728446821752,0.080129,62428.0,62427.0,0.121]
[1728446821960,0.081129,62428.0,62427.0,0.122]
[1728446822951,0.2005184,62428.0,62427.0,0.122]
[1728446823157,0.25799606,62428.0,62427.0,0.122]
[1728446823753,0.25799606,62428.0,62425.0,0.080132]
[1728446823953,0.17686706,62427.0,62425.0,0.080132]
[1728446824158,0.17686706,62426.0,62425.0,0.080132]
[1728446824452,0.1193894,62426.0,62425.0,0.10955006]
[1728446824854,0.1193894,62426.0,62425.0,0.11155006]
[1728446825055,0.1193894,62426.0,62425.0,0.23155006]
[1728446825666,0.1203894,62426.0,62425.0,0.23155006]
[1728446828859,0.001,62426.0,62425.0,0.23155006]
[1728446829061,0.07119586,62426.0,62425.0,0.23155006]
[1728446829255,0.12038271,62426.0,62425.0,0.23155006]
[1728446831064,0.001,62426.0,62425.0,0.23155006]
[1728446832265,0.001,62426.0,62425.0,0.59235006]
[1728446834274,0.001,62426.0,62425.0,0.23155006]
[1728446834570,0.001,62426.0,62425.0,0.59235006]
[1728446834774,0.001,62426.0,62425.0,0.23155006]
[1728446834972,0.001,62426.0,62425.0,0.59235006]
[1728446835172,0.001,62426.0,62425.0,0.23155006]
[1728446835374,0.001,62426.0,62425.0,0.59235006]
[1728446838461,0.03195265,62426.0,62425.0,0.59235006]
[1728446838864,0.03195255,62426.0,62425.0,0.59235006]
[1728446841179,0.03195255,62426.0,62425.0,0.23155006]
[1728446841377,0.03195255,62426.0,62425.0,0.59235006]
[1728446843782,0.03195256,62426.0,62425.0,0.59235006]
[1728446844977,0.03195256,62426.0,62425.0,0.23155006]
[1728446845177,0.03195256,62426.0,62425.0,0.59235006]
[1728446846081,0.0711923,62426.0,62425.0,0.3608]
[1728446846386,0.12037665,62426.0,62425.0,0.4808]
[1728446846584,0.12037665,62426.0,62425.0,0.50947432]
[1728446847086,0.12037665,62426.0,62425.0,0.58960632]
[1728446847680,0.0711923,62426.0,62425.0,0.58960632]
[1728446847874,0.12037665,62426.0,62425.0,0.58960632]
[1728446848280,0.12037665,62426.0,62425.0,0.22880632]
[1728446848487,0.12037665,62426.0,62425.0,0.58960632]
[1728446848682,0.12037663,62426.0,62425.0,0.58960632]